fUSD/lending_fUSD_20260521
["ID","MTS","AMOUNT","RATE_DAILY","PERIOD"]
[422738357,1779340327000,-500.0,0.00039873,120]
[422738358,1779340327000,-500.0,0.00039873,120]
[422738360,1779340327000,-500.0,0.00039873,120]
[422738359,1779340327000,-500.0,0.00039873,120]
[422738362,1779340327000,-500.0,0.00039873,120]
[422738361,1779340327000,-545.07874869,0.00039873,120]
[422738363,1779340327000,-500.0,0.00039873,120]
[422738364,1779340327000,-500.0,0.00039873,120]
[422738365,1779340327000,-226.18404766,0.00039873,120]
[422738366,1779340327000,-500.0,0.00039873,120]
[422738356,1779340327000,-534.7464837,0.00039873,120]
[422738373,1779340328000,-500.0,0.00039873,120]
[422738374,1779340328000,-500.0,0.00039873,120]
[422738372,1779340328000,-500.0,0.00039873,120]
[422738375,1779340328000,-560.31986185,0.00039873,120]
[422738370,1779340328000,-550.57336224,0.00039873,120]
[422738368,1779340328000,-500.0,0.00039873,120]
[422738367,1779340328000,-500.0,0.00039873,120]
[422738371,1779340328000,-552.09178575,0.00039873,120]
[422738376,1779340328000,-500.0,0.00039873,120]
[422738369,1779340328000,-500.0,0.00039873,120]
[422738377,1779340328000,-500.0,0.00039873,120]
[422738386,1779340328000,-500.0,0.00039873,120]
[422738385,1779340328000,-500.0,0.00039873,120]
[422738387,1779340328000,-444.48,0.00039873,120]
[422738384,1779340328000,-358.47837854,0.00039873,120]
[422738378,1779340328000,-500.0,0.00039873,120]
[422738382,1779340328000,-500.0,0.00039873,120]
[422738381,1779340328000,-513.96191069,0.00039873,120]
[422738379,1779340328000,-500.0,0.00039873,120]
[422738380,1779340328000,-500.0,0.00039873,120]
[422738383,1779340328000,-500.0,0.00039873,120]
[422738389,1779340329000,-520.30767503,0.00039873,120]
[422738388,1779340329000,-521.59421473,0.00039873,120]
[422738390,1779340329000,-500.0,0.00039873,120]
[422738391,1779340329000,-500.0,0.00039873,120]
[422738392,1779340329000,-500.0,0.00039873,120]
[422738393,1779340329000,-263.32304526,0.00039873,120]
[422738396,1779340329000,-500.0,0.00039873,120]
[422738394,1779340329000,-511.15579097,0.00039873,120]
[422738398,1779340329000,-500.0,0.00039873,120]
[422738397,1779340329000,-540.94228672,0.00039873,120]
[422738395,1779340329000,-500.0,0.00039873,120]
[422738400,1779340329000,-500.0,0.00039873,120]
[422738409,1779340329000,-500.0,0.00039873,120]
[422738399,1779340329000,-500.0,0.00039873,120]
[422738407,1779340329000,-500.0,0.00039873,120]
[422738405,1779340329000,-500.0,0.00039873,120]
[422738406,1779340329000,-500.0,0.00039873,120]
[422738408,1779340329000,-500.0,0.00039873,120]
[422738403,1779340329000,-500.0,0.00039873,120]
[422738402,1779340329000,-500.0,0.00039873,120]
[422738401,1779340329000,-500.0,0.00039873,120]
[422738404,1779340329000,-500.0,0.00039873,120]
[422738411,1779340330000,-500.0,0.00039873,120]
[422738410,1779340330000,-500.0,0.00039873,120]
[422738412,1779340330000,-500.0,0.00039873,120]
[422738413,1779340330000,-500.0,0.00039873,120]
[422738414,1779340330000,-500.0,0.00039873,120]
[422738415,1779340330000,-500.0,0.00039873,120]
[422738416,1779340330000,-500.0,0.00039873,120]
[422738419,1779340330000,-500.0,0.00039873,120]
[422738418,1779340330000,-500.0,0.00039873,120]
[422738417,1779340330000,-182.01,0.00039873,120]
[422738420,1779340330000,-500.0,0.00039873,120]
[422738429,1779340330000,-500.0,0.00039873,120]
[422738428,1779340330000,-500.0,0.00039873,120]
[422738427,1779340330000,-500.0,0.00039873,120]
[422738426,1779340330000,-500.0,0.00039873,120]
[422738421,1779340330000,-500.0,0.00039873,120]
[422738424,1779340330000,-500.0,0.00039873,120]
[422738423,1779340330000,-500.0,0.00039873,120]
[422738422,1779340330000,-500.0,0.00039873,120]
[422738425,1779340330000,-500.0,0.00039873,120]
[422738430,1779340331000,-500.0,0.00039873,120]
[422738431,1779340331000,-500.0,0.00039873,120]
[422738432,1779340331000,-500.0,0.00039873,120]
[422738433,1779340331000,-500.0,0.00039873,120]
[422738434,1779340331000,-500.0,0.00039873,120]
[422738435,1779340331000,-420.32453726,0.00039873,120]
[422738436,1779340331000,-577.59538435,0.00039873,120]
[422738438,1779340331000,-2412.44,0.00039873,120]
[422738439,1779340331000,-2412.44,0.00039873,120]
[422738437,1779340331000,-483.9220423,0.00039873,120]
[422738442,1779340331000,-2412.44,0.00039873,120]
[422738449,1779340331000,-2412.44,0.00039873,120]
[422738447,1779340331000,-2412.44,0.00039873,120]
[422738448,1779340331000,-2412.44,0.00039873,120]
[422738445,1779340331000,-2412.44,0.00039873,120]
[422738450,1779340331000,-2412.44,0.00039873,120]
[422738444,1779340331000,-2412.44,0.00039873,120]
[422738443,1779340331000,-2412.44,0.00039873,120]
[422738441,1779340331000,-2412.44,0.00039873,120]
[422738446,1779340331000,-2412.44,0.00039873,120]
[422738440,1779340331000,-2412.44,0.00039873,120]
[422738460,1779340332000,-2412.44,0.00039873,120]
[422738452,1779340332000,-2412.44,0.00039873,120]
[422738451,1779340332000,-2412.44,0.00039873,120]
[422738453,1779340332000,-2412.44,0.00039873,120]
[422738454,1779340332000,-2412.44,0.00039873,120]
[422738455,1779340332000,-2412.44,0.00039873,120]
[422738456,1779340332000,-2412.44,0.00039873,120]
[422738457,1779340332000,-2412.44,0.00039873,120]
[422738458,1779340332000,-2412.44,0.00039873,120]
[422738461,1779340332000,-2412.46824748,0.00039873,120]
[422738462,1779340332000,-500.0,0.00039873,120]
[422738470,1779340332000,-533.89246259,0.00039873,120]
[422738469,1779340332000,-500.0,0.00039873,120]
[422738467,1779340332000,-432.47991536,0.00039873,120]
[422738468,1779340332000,-500.0,0.00039873,120]
[422738459,1779340332000,-2412.44,0.00039873,120]
[422738465,1779340332000,-500.0,0.00039873,120]
[422738464,1779340332000,-464.47058411,0.00039873,120]
[422738463,1779340332000,-638.36,0.00039873,120]
[422738466,1779340332000,-235.49,0.00039873,120]
[422738471,1779340333000,-500.0,0.00039873,120]
[422738472,1779340333000,-500.0,0.00039873,120]
[422738473,1779340333000,-500.0,0.00039873,120]
[422738474,1779340333000,-500.0,0.00039873,120]
[422738476,1779340333000,-500.0,0.00039873,120]
[422738475,1779340333000,-500.0,0.00039873,120]
[422738477,1779340333000,-402.17452021,0.00039873,120]
[422738480,1779340333000,-199.8921192,0.00039873,120]
[422738481,1779340333000,-500.0,0.00039873,120]
[422738478,1779340333000,-500.0,0.00039873,120]
[422738479,1779340333000,-500.0,0.00039873,120]
[422738483,1779340333000,-502.53364809,0.00039873,120]
[422738484,1779340333000,-500.0,0.00039873,120]
[422738486,1779340333000,-500.0,0.00039873,120]
[422738485,1779340333000,-500.0,0.00039873,120]
[422738487,1779340333000,-500.0,0.00039873,120]
[422738488,1779340333000,-214.34821568,0.00039873,120]
[422738489,1779340333000,-500.0,0.00039873,120]
[422738490,1779340333000,-500.0,0.00039873,120]
[422738491,1779340333000,-500.0,0.00039873,120]
[422738482,1779340333000,-500.0,0.00039873,120]
[422738501,1779340334000,-10012.3,0.00039873,120]
[422738498,1779340334000,-597.82547979,0.00039873,120]
[422738499,1779340334000,-500.0,0.00039873,120]
[422738496,1779340334000,-500.0,0.00039873,120]
[422738500,1779340334000,-459.14,0.00039873,120]
[422738494,1779340334000,-500.0,0.00039873,120]
[422738495,1779340334000,-500.0,0.00039873,120]
[422738492,1779340334000,-500.0,0.00039873,120]
[422738497,1779340334000,-500.0,0.00039873,120]
[422738493,1779340334000,-295.31616607,0.00039873,120]
[422738503,1779340334000,-500.0,0.00039873,120]
[422738502,1779340334000,-500.0,0.00039873,120]
[422738512,1779340334000,-500.0,0.00039873,120]
[422738511,1779340334000,-500.0,0.00039873,120]
[422738509,1779340334000,-500.0,0.00039873,120]
[422738510,1779340334000,-500.0,0.00039873,120]
[422738504,1779340334000,-500.0,0.00039873,120]
[422738507,1779340334000,-500.0,0.00039873,120]
[422738505,1779340334000,-297.73284301,0.00039873,120]
[422738506,1779340334000,-5000.0,0.00039873,120]
[422738508,1779340334000,-500.0,0.00039873,120]
[422738522,1779340335000,-435.31370545,0.00039873,120]
[422738513,1779340335000,-500.0,0.00039873,120]
[422738516,1779340335000,-435.31370545,0.00039873,120]
[422738515,1779340335000,-1770.84,0.00039873,120]
[422738518,1779340335000,-435.31370545,0.00039873,120]
[422738517,1779340335000,-435.31370545,0.00039873,120]
[422738520,1779340335000,-435.31370545,0.00039873,120]
[422738519,1779340335000,-435.31370545,0.00039873,120]
[422738514,1779340335000,-491.76636356,0.00039873,120]
[422738521,1779340335000,-435.31370545,0.00039873,120]
[422738523,1779340335000,-435.31370545,0.00039873,120]
[422738526,1779340335000,-435.31370545,0.00039873,120]
[422738525,1779340335000,-435.31370545,0.00039873,120]
[422738528,1779340335000,-435.31370545,0.00039873,120]
[422738527,1779340335000,-435.31370545,0.00039873,120]
[422738529,1779340335000,-435.31370545,0.00039873,120]
[422738530,1779340335000,-217.65685271,0.00039873,120]
[422738532,1779340335000,-300000.0,0.00039873,120]
[422738531,1779340335000,-217.65685271,0.00039873,120]
[422738524,1779340335000,-435.31370545,0.00039873,120]
[422738540,1779340336000,-500.0,0.00039873,120]
[422738539,1779340336000,-419.94809778,0.00039873,120]
[422738538,1779340336000,-377.327449,0.00039873,90]
[422738542,1779340336000,-500.0,0.00039873,120]
[422738536,1779340336000,-198.48856181,0.00039873,120]
[422738535,1779340336000,-500.0,0.00039873,120]
[422738533,1779340336000,-300000.0,0.00039873,120]
[422738537,1779340336000,-2406.97780449,0.00039873,120]
[422738541,1779340336000,-541.76,0.00039873,120]
[422738534,1779340336000,-500.0,0.00039873,120]
[422738544,1779340336000,-176.92407959,0.00039873,120]
[422738551,1779340336000,-192.22198405,0.00039873,120]
[422738552,1779340336000,-301.95698754,0.00039873,120]
[422738550,1779340336000,-346.70386928,0.00039873,120]
[422738548,1779340336000,-243.30347408,0.00039873,120]
[422738543,1779340336000,-567.55,0.00039873,120]
[422738547,1779340336000,-177.25102341,0.00039873,120]
[422738546,1779340336000,-500.0,0.00039873,120]
[422738545,1779340336000,-176.92407959,0.00039873,120]
[422738549,1779340336000,-532.14378734,0.00039873,120]
[422738561,1779340337000,-152.66519432,0.00039873,120]
[422738553,1779340337000,-209.14272425,0.00039873,120]
[422738554,1779340337000,-288.93692841,0.00039873,120]
[422738555,1779340337000,-567.52833751,0.00039873,120]
[422738556,1779340337000,-160.35276858,0.00039873,120]
[422738557,1779340337000,-153.34123716,0.00039873,120]
[422738559,1779340337000,-165.21724875,0.00039873,120]
[422738558,1779340337000,-254.56760372,0.00039873,120]
[422738560,1779340337000,-249.12060528,0.00039873,120]
[422738562,1779340337000,-236.70656052,0.00039873,120]
[422738563,1779340337000,-500.0,0.00039873,120]
[422738564,1779340337000,-307.95074078,0.00039873,120]
[422738571,1779340337000,-258.9958226,0.00039873,120]
[422738572,1779340337000,-293.89711091,0.00039873,120]
[422738570,1779340337000,-213.83579741,0.00039873,120]
[422738568,1779340337000,-1205.29641963,0.00039873,120]
[422738573,1779340337000,-417.83048971,0.00039873,120]
[422738567,1779340337000,-161.20257242,0.00039873,120]
[422738566,1779340337000,-469.36779591,0.00039873,120]
[422738565,1779340337000,-206.64822728,0.00039873,120]
[422738569,1779340337000,-199.64069174,0.00039873,120]
[422738581,1779340338000,-7920.12906262,0.00039873,120]
[422738574,1779340338000,-500.0,0.00039873,90]
[422738576,1779340338000,-209.37098027,0.00039873,120]
[422738578,1779340338000,-194.67188467,0.00039873,120]
[422738577,1779340338000,-288.27643827,0.00039873,120]
[422738580,1779340338000,-7920.12906262,0.00039873,120]
[422738579,1779340338000,-7920.12906262,0.00039873,120]
[422738582,1779340338000,-7920.12906262,0.00039873,120]
[422738583,1779340338000,-162.58533165,0.00039873,120]
[422738575,1779340338000,-192.87413799,0.00039873,90]
[422738585,1779340338000,-7920.12906262,0.00039873,120]
[422738584,1779340338000,-7920.12906262,0.00039873,120]
[422738591,1779340338000,-7920.12906262,0.00039873,120]
[422738593,1779340338000,-7920.12906262,0.00039873,120]
[422738589,1779340338000,-7920.12906262,0.00039873,120]
[422738592,1779340338000,-7920.12906262,0.00039873,120]
[422738588,1779340338000,-7920.12906262,0.00039873,120]
[422738587,1779340338000,-7920.12906262,0.00039873,120]
[422738586,1779340338000,-7920.12906262,0.00039873,120]
[422738590,1779340338000,-7920.12906262,0.00039873,120]
[422738600,1779340339000,-162.79251084,0.00039873,120]
[422738594,1779340339000,-398.58196232,0.00039873,120]
[422738595,1779340339000,-334.82613731,0.00039873,120]
[422738596,1779340339000,-500.0,0.00039873,120]
[422738597,1779340339000,-180.67923461,0.00039873,120]
[422738598,1779340339000,-500.0,0.00039873,120]
[422738599,1779340339000,-500.0,0.00039873,120]
[422738601,1779340339000,-500.0,0.00039873,120]
[422738603,1779340339000,-500.0,0.00039873,120]
[422738611,1779340339000,-275.93456009,0.00039873,120]
[422738604,1779340339000,-260.99432913,0.00039873,120]
[422738606,1779340339000,-167.85680594,0.00039873,120]
[422738605,1779340339000,-500.0,0.00039873,120]
[422738608,1779340339000,-583.5203,0.00039873,120]
[422738607,1779340339000,-500.0,0.00039873,120]
[422738610,1779340339000,-337.30869053,0.00039873,120]
[422738609,1779340339000,-172.24200154,0.00039873,120]
[422738602,1779340339000,-500.0,0.00039873,120]
[422738617,1779340340000,-244.55680959,0.00039873,120]
[422738616,1779340340000,-173.67042573,0.00039873,120]
[422738615,1779340340000,-838.0,0.00039873,120]
[422738618,1779340340000,-347.12192879,0.00039873,120]
[422738613,1779340340000,-159.5235296,0.00039873,120]
[422738612,1779340340000,-165.25738844,0.00039873,120]
[422738614,1779340340000,-170.0488364,0.00039873,120]
[422738619,1779340340000,-605.87985002,0.00039873,120]
[422738628,1779340340000,-346.16554721,0.00039873,120]
[422738621,1779340340000,-500.0,0.00039873,120]
[422738622,1779340340000,-166.95921251,0.00039873,120]
[422738623,1779340340000,-269.53072694,0.00039873,120]
[422738624,1779340340000,-317.34678776,0.00039873,120]
[422738625,1779340340000,-211.83085205,0.00039873,120]
[422738626,1779340340000,-250.90474514,0.00039873,120]
[422738627,1779340340000,-293.12714833,0.00039873,120]
[422738629,1779340340000,-215.53053662,0.00039873,120]
[422738620,1779340340000,-500.0,0.00039873,120]
[422738636,1779340341000,-232.33699279,0.00039873,120]
[422738635,1779340341000,-369.93186829,0.00039873,120]
[422738634,1779340341000,-215.563148,0.00039873,120]
[422738637,1779340341000,-535.32262952,0.00039873,120]
[422738632,1779340341000,-253.5426692,0.00039873,120]
[422738631,1779340341000,-500.0,0.00039873,120]
[422738630,1779340341000,-647.17660913,0.00039873,120]
[422738633,1779340341000,-1421.56,0.00039873,120]
[422738638,1779340341000,-500.0,0.00039873,120]
[422738648,1779340341000,-544.23788356,0.00039873,120]
[422738640,1779340341000,-500.0,0.00039873,120]
[422738649,1779340341000,-151.48037166,0.00039873,120]
[422738647,1779340341000,-396.65848014,0.00039873,120]
[422738646,1779340341000,-375.11400163,0.00039873,120]
[422738645,1779340341000,-222.11266703,0.00039873,120]
[422738639,1779340341000,-567.14807215,0.00039873,120]
[422738643,1779340341000,-300.28,0.00039873,120]
[422738642,1779340341000,-205.33940888,0.00039873,120]
[422738641,1779340341000,-267.93045587,0.00039873,120]
[422738644,1779340341000,-2900.5370751,0.00039873,120]
[422738650,1779340342000,-500.0,0.00039873,120]
[422738651,1779340342000,-186.3607,0.00039873,120]
[422738652,1779340342000,-410.1594,0.00039873,120]
[422738653,1779340342000,-581.3430025,0.00039873,120]
[422738654,1779340342000,-199.73869345,0.00039873,120]
[422738655,1779340342000,-175.60141361,0.00039873,120]
[422738657,1779340342000,-257.49395017,0.00039873,120]
[422738658,1779340342000,-215.91803208,0.00039873,120]
[422738656,1779340342000,-186.87798931,0.00039873,120]
[422738660,1779340342000,-500.0,0.00039873,120]
[422738668,1779340342000,-500.0,0.00039873,120]
[422738667,1779340342000,-478.11820065,0.00039873,120]
[422738665,1779340342000,-597.65099775,0.00039873,120]
[422738666,1779340342000,-500.0,0.00039873,120]
[422738659,1779340342000,-345.21892471,0.00039873,120]
[422738664,1779340342000,-209.40070607,0.00039873,120]
[422738662,1779340342000,-203.25588064,0.00039873,120]
[422738661,1779340342000,-500.0,0.00039873,120]
[422738663,1779340342000,-500.0,0.00039873,120]
[422738677,1779340343000,-205.59862334,0.00039873,120]
[422738670,1779340343000,-428.14614154,0.00039873,120]
[422738672,1779340343000,-367.10467764,0.00039873,120]
[422738671,1779340343000,-326.92250548,0.00039873,120]
[422738674,1779340343000,-204.56206876,0.00039873,120]
[422738673,1779340343000,-188.51798974,0.00039873,120]
[422738676,1779340343000,-158.16722126,0.00039873,120]
[422738675,1779340343000,-534.8370513,0.00039873,120]
[422738669,1779340343000,-500.0,0.00039873,120]
[422738678,1779340343000,-165.64807772,0.00039873,120]
[422738680,1779340343000,-167.52301661,0.00039873,120]
[422738687,1779340343000,-500.0,0.00039873,120]
[422738686,1779340343000,-500.0,0.00039873,120]
[422738685,1779340343000,-175.00946906,0.00039873,120]
[422738688,1779340343000,-623.38055333,0.00039873,120]
[422738683,1779340343000,-1502.784,0.00039873,120]
[422738682,1779340343000,-190.69802442,0.00039873,120]
[422738681,1779340343000,-160.78529018,0.00039873,120]
[422738684,1779340343000,-500.0,0.00039873,120]
[422738679,1779340343000,-218.23536069,0.00039873,120]
[422738697,1779340344000,-159.39775755,0.00039873,120]
[422738689,1779340344000,-3264.616434,0.00039873,120]
[422738690,1779340344000,-397.36485021,0.00039873,120]
[422738691,1779340344000,-153.73378026,0.00039873,120]
[422738693,1779340344000,-162.24390954,0.00039873,120]
[422738692,1779340344000,-245.56554851,0.00039873,60]
[422738695,1779340344000,-2395.73,0.00039873,120]
[422738694,1779340344000,-164.49270926,0.00039873,120]
[422738696,1779340344000,-156.91046637,0.00039873,120]
[422738698,1779340344000,-160.5491515,0.00039873,120]
[422738701,1779340344000,-3344.9,0.00039873,120]
[422738700,1779340344000,-170.05881198,0.00039873,120]
[422738703,1779340344000,-500.0,0.00039873,120]
[422738702,1779340344000,-176.20501379,0.00039873,120]
[422738705,1779340344000,-500.0,0.00039873,120]
[422738704,1779340344000,-500.0,0.00039873,120]
[422738707,1779340344000,-500.0,0.00039873,120]
[422738706,1779340344000,-500.0,0.00039873,120]
[422738699,1779340344000,-169.92607068,0.00039873,120]
[422738714,1779340345000,-500.0,0.00039873,120]
[422738715,1779340345000,-500.0,0.00039873,120]
[422738712,1779340345000,-500.0,0.00039873,120]
[422738713,1779340345000,-500.0,0.00039873,120]
[422738709,1779340345000,-500.0,0.00039873,120]
[422738711,1779340345000,-500.0,0.00039873,120]
[422738708,1779340345000,-500.0,0.00039873,120]
[422738717,1779340345000,-500.0,0.00039873,120]
[422738710,1779340345000,-500.0,0.00039873,120]
[422738716,1779340345000,-500.0,0.00039873,120]
[422738728,1779340345000,-500.0,0.00039873,120]
[422738718,1779340345000,-500.0,0.00039873,120]
[422738727,1779340345000,-500.0,0.00039873,120]
[422738726,1779340345000,-500.0,0.00039873,120]
[422738724,1779340345000,-500.0,0.00039873,120]
[422738725,1779340345000,-500.0,0.00039873,120]
[422738719,1779340345000,-646.89677426,0.00039873,120]
[422738722,1779340345000,-500.0,0.00039873,120]
[422738721,1779340345000,-500.0,0.00039873,120]
[422738720,1779340345000,-168.19814508,0.00039873,120]
[422738723,1779340345000,-500.0,0.00039873,120]
[422738730,1779340346000,-500.0,0.00039873,120]
[422738729,1779340346000,-500.0,0.00039873,120]
[422738731,1779340346000,-500.0,0.00039873,120]
[422738732,1779340346000,-560.75913213,0.00039873,120]
[422738733,1779340346000,-155.36671245,0.00039873,120]
[422738734,1779340346000,-164.21205384,0.00039873,120]
[422738736,1779340346000,-160.5689695,0.00039873,120]
[422738738,1779340346000,-160.5689695,0.00039873,120]
[422738737,1779340346000,-160.5689695,0.00039873,120]
[422738735,1779340346000,-160.5689695,0.00039873,120]
[422738739,1779340346000,-160.5689695,0.00039873,120]
[422738747,1779340346000,-1000.0,0.00039873,120]
[422738740,1779340346000,-160.5689695,0.00039873,120]
[422738745,1779340346000,-169.9690021,0.00039873,120]
[422738746,1779340346000,-1000.0,0.00039873,120]
[422738748,1779340346000,-1000.0,0.00039873,120]
[422738743,1779340346000,-160.56896947,0.00039873,120]
[422738742,1779340346000,-167.3724855,0.00039873,120]
[422738741,1779340346000,-160.5689695,0.00039873,120]
[422738744,1779340346000,-174.41433372,0.00039873,120]
[422738749,1779340347000,-1000.0,0.00039873,120]
[422738750,1779340347000,-1000.0,0.00039873,120]
[422738751,1779340347000,-1000.0,0.00039873,120]
[422738752,1779340347000,-1000.0,0.00039873,120]
[422738753,1779340347000,-1000.0,0.00039873,120]
[422738754,1779340347000,-1000.0,0.00039873,120]
[422738756,1779340347000,-1000.0,0.00039873,120]
[422738757,1779340347000,-1000.0,0.00039873,120]
[422738755,1779340347000,-1000.0,0.00039873,120]
[422738759,1779340347000,-1000.0,0.00039873,120]
[422738767,1779340347000,-4021.8,0.00039873,120]
[422738766,1779340347000,-3258.59636502,0.00039873,120]
[422738765,1779340347000,-767.74,0.00039873,120]
[422738764,1779340347000,-1000.0,0.00039873,120]
[422738758,1779340347000,-174.53660936,0.00039873,120]
[422738762,1779340347000,-1000.0,0.00039873,120]
[422738761,1779340347000,-1000.0,0.00039873,120]
[422738760,1779340347000,-1000.0,0.00039873,120]
[422738763,1779340347000,-1000.0,0.00039873,120]
[422738768,1779340348000,-1004.0,0.00039873,120]
[422738769,1779340348000,-412.67922661,0.00039873,120]
[422738770,1779340348000,-428.52728,0.00039873,120]
[422738771,1779340348000,-500.0,0.00039873,120]
[422738773,1779340348000,-292.32701155,0.00039873,120]
[422738772,1779340348000,-500.0,0.00039873,120]
[422738775,1779340348000,-3899.02,0.00039873,120]
[422738776,1779340348000,-3899.02,0.00039873,120]
[422738774,1779340348000,-3899.02,0.00039873,120]
[422738778,1779340348000,-3899.02,0.00039873,120]
[422738786,1779340348000,-3899.02,0.00039873,120]
[422738784,1779340348000,-3899.02,0.00039873,120]
[422738785,1779340348000,-3899.02,0.00039873,120]
[422738782,1779340348000,-3899.02,0.00039873,120]
[422738777,1779340348000,-3899.02,0.00039873,120]
[422738781,1779340348000,-3899.02,0.00039873,120]
[422738780,1779340348000,-3899.02,0.00039873,120]
[422738779,1779340348000,-3899.02,0.00039873,120]
[422738783,1779340348000,-3899.02,0.00039873,120]
[422738796,1779340349000,-3899.02,0.00039873,120]
[422738788,1779340349000,-3899.02,0.00039873,120]
[422738790,1779340349000,-3899.02,0.00039873,120]
[422738789,1779340349000,-3899.02,0.00039873,120]
[422738792,1779340349000,-3899.02,0.00039873,120]
[422738791,1779340349000,-3899.02,0.00039873,120]
[422738794,1779340349000,-3899.02,0.00039873,120]
[422738793,1779340349000,-3899.02,0.00039873,120]
[422738787,1779340349000,-3899.02,0.00039873,120]
[422738795,1779340349000,-3899.02,0.00039873,120]
[422738797,1779340349000,-3899.20834514,0.00039873,120]
[422738805,1779340349000,-6479.42,0.00039873,120]
[422738806,1779340349000,-6479.42,0.00039873,120]
[422738803,1779340349000,-6479.42,0.00039873,120]
[422738804,1779340349000,-6479.42,0.00039873,120]
[422738798,1779340349000,-4662.16723652,0.00039873,74]
[422738802,1779340349000,-6479.42,0.00039873,120]
[422738799,1779340349000,-24780.52648139,0.00039873,61]
[422738800,1779340349000,-391.76342848,0.00039873,120]
[422738801,1779340349000,-6479.42,0.00039873,120]
[422738808,1779340350000,-6479.42,0.00039873,120]
[422738807,1779340350000,-6479.42,0.00039873,120]
[422738809,1779340350000,-6479.42,0.00039873,120]
[422738810,1779340350000,-6479.42,0.00039873,120]
[422738811,1779340350000,-6479.42,0.00039873,120]
[422738812,1779340350000,-6479.42,0.00039873,120]
[422738814,1779340350000,-6479.42,0.00039873,120]
[422738815,1779340350000,-6479.42,0.00039873,120]
[422738813,1779340350000,-6479.42,0.00039873,120]
[422738825,1779340350000,-269.07539711,0.00039873,120]
[422738818,1779340350000,-6479.42,0.00039873,120]
[422738826,1779340350000,-615.72194258,0.00039873,120]
[422738824,1779340350000,-6479.56548915,0.00039873,120]
[422738823,1779340350000,-6479.42,0.00039873,120]
[422738816,1779340350000,-6479.42,0.00039873,120]
[422738821,1779340350000,-6479.42,0.00039873,120]
[422738819,1779340350000,-6479.42,0.00039873,120]
[422738820,1779340350000,-6479.42,0.00039873,120]
[422738817,1779340350000,-6479.42,0.00039873,120]
[422738822,1779340350000,-6479.42,0.00039873,120]
[422738828,1779340351000,-155.58247874,0.00039873,120]
[422738827,1779340351000,-166.38262972,0.00039873,120]
[422738830,1779340351000,-554.82657801,0.00039873,60]
[422738829,1779340351000,-171.13439957,0.00039873,75]
[422738831,1779340351000,-262.96421584,0.00039873,120]
[422738832,1779340351000,-481.80111004,0.00039873,120]
[422738834,1779340351000,-388.54932998,0.00039873,120]
[422738833,1779340351000,-175.12570483,0.00039873,120]
[422738836,1779340351000,-220.21906949,0.00039873,120]
[422738837,1779340351000,-1126.81,0.00039873,120]
[422738838,1779340351000,-1126.81,0.00039873,120]
[422738845,1779340351000,-1126.81,0.00039873,120]
[422738846,1779340351000,-1126.81,0.00039873,120]
[422738843,1779340351000,-1126.81,0.00039873,120]
[422738844,1779340351000,-1126.81,0.00039873,120]
[422738835,1779340351000,-165.41652676,0.00039873,120]
[422738842,1779340351000,-1126.81,0.00039873,120]
[422738839,1779340351000,-1126.81,0.00039873,120]
[422738840,1779340351000,-1126.81,0.00039873,120]
[422738841,1779340351000,-1126.81,0.00039873,120]
[422738856,1779340352000,-1126.81,0.00039873,120]
[422738847,1779340352000,-1126.81,0.00039873,120]
[422738850,1779340352000,-1126.81,0.00039873,120]
[422738849,1779340352000,-1126.81,0.00039873,120]
[422738852,1779340352000,-1126.81,0.00039873,120]
[422738851,1779340352000,-1126.81,0.00039873,120]
[422738853,1779340352000,-1126.81,0.00039873,120]
[422738854,1779340352000,-1126.81,0.00039873,120]
[422738848,1779340352000,-1126.81,0.00039873,120]